bitfinex-derivatives/quotes_SOLF0:USTF0_20250310
["timestamp","ask_amount","ask_price","bid_price","bid_amount"]
[1741623796698,8.2906,120.66,120.62,8.2924]
[1741623796898,0.05722351,120.67,120.61,98.53565279]
[1741623797698,0.05722351,120.67,120.61,57.71565279]
[1741623797898,0.05722351,120.67,120.62,40.82]
[1741623798100,8.2904,120.66,120.62,49.1123]
[1741623798499,0.05722351,120.67,120.61,98.53565279]
[1741623798701,8.34702351,120.67,120.63,8.2917]
[1741623798895,0.05722351,120.67,120.61,98.53565279]
[1741623799094,8.34692351,120.67,120.63,8.2918]
[1741623800293,0.05722351,120.67,120.61,98.53565279]
[1741623800498,0.05722351,120.67,120.63,57.71565279]
[1741623801003,0.05722351,120.67,120.65,57.71565279]
[1741623801198,8.34662351,120.67,120.65,40.82]
[1741623801703,0.05722351,120.67,120.62,40.82]
[1741623801904,0.05722351,120.67,120.63,57.71565279]
[1741623802101,0.05722351,120.67,120.59,0.7973]
[1741623802307,8.2911,120.65,120.59,41.6173]
[1741623802500,0.05601951,120.64,120.6,97.62362468]
[1741623803400,0.05601951,120.64,120.6,62.0]
[1741623803706,0.05601951,120.64,120.62,35.62362468]
[1741623803896,4.1066,120.72,120.62,35.62362468]
[1741623804099,8.29,120.66,120.62,43.91612468]
[1741623804301,44.9266,120.72,120.6,97.62362468]
[1741623804608,309.04362468,120.71,120.6,62.0]
[1741623804796,8.2911,120.65,120.61,8.2933]
[1741623805106,8.2911,120.65,120.64,0.05527278]
[1741623805800,12.27611508,120.66,120.6,62.0]
[1741623806203,8.2923,120.63,120.6,62.0]
[1741623806704,12.2232,120.66,120.6,62.0]
[1741623807009,8.2931,120.62,120.6,62.0]
[1741623807210,0.06303725,120.63,120.46,325.18574624]
[1741623807406,8.2955,120.59,120.52,40.82]
[1741623807606,0.05822946,120.59,120.56,57.89901311]
[1741623807803,8.2917,120.64,120.58,57.89901311]
[1741623808009,12.2232,120.66,120.58,57.89901311]
[1741623808213,12.2232,120.66,120.59,8.2948]
[1741623808505,12.2232,120.66,120.56,98.71901311]
[1741623808811,12.2232,120.66,120.56,107.01551311]
[1741623809307,0.06241998,120.62,120.6,0.05666341]
[1741623809513,8.2935,120.61,120.6,0.056592]
[1741623809914,8.2953,120.59,120.55,8.2976]
[1741623810107,0.06241998,120.62,120.54,57.89901311]
[1741623810308,40.8,120.63,120.55,62.0]
[1741623810511,8.2947,120.6,120.55,62.0]
[1741623810813,40.8,120.63,120.55,62.0]
[1741623811110,0.060309,120.59,120.55,62.0]
[1741623811614,0.060309,120.59,120.56,40.82]
[1741623811812,0.060309,120.59,120.55,62.0]
[1741623812014,8.2957,120.58,120.55,62.0]
[1741623812213,0.060309,120.59,120.55,62.0]
[1741623812407,0.060309,120.59,120.55,70.2975]
[1741623812614,0.060309,120.59,120.55,102.82]
[1741623813011,0.060309,120.59,120.56,8.2968]
[1741623813215,0.060309,120.59,120.55,102.82]
[1741623813617,0.060309,120.59,120.57,8.2958]
[1741623813919,0.060309,120.59,120.55,102.82]
[1741623814215,0.060309,120.59,120.57,8.2956]
[1741623814414,0.060309,120.59,120.55,102.82]
[1741623814718,53.0432,120.66,120.59,8.2948]
[1741623814924,53.0432,120.66,120.56,57.89901311]
[1741623815321,8.2942,120.6,120.57,8.2959]
[1741623815521,8.2942,120.6,120.55,102.82]
[1741623815721,57.89901311,120.65,120.55,102.82]
[1741623815917,8.2928,120.62,120.58,8.295]
[1741623816222,0.05607179,120.61,120.59,0.05696755]
[1741623816422,8.2941,120.6,120.59,0.05696755]
[1741623816623,0.06151447,120.61,120.59,0.05696755]
[1741623817020,8.2941,120.6,120.59,0.05696755]
[1741623820324,0.06151447,120.61,120.59,0.05696755]
[1741623820922,0.06151447,120.61,120.6,8.2941]
[1741623821226,8.289,120.68,120.6,57.89901311]
[1741623821528,98.71901311,120.7,120.61,40.82]
[1741623821824,3.9957,120.69,120.6,40.82]
[1741623822024,3.9957,120.69,120.58,57.89901311]
[1741623822225,3.9957,120.69,120.59,40.82]
[1741623822419,0.05837033,120.65,120.62,0.05344657]
[1741623823015,0.05837033,120.65,120.63,8.2917]
[1741623823225,0.05837033,120.65,120.62,0.05344657]
[1741623823919,0.05837033,120.65,120.64,8.2914]
[1741623824120,0.05837033,120.65,120.62,0.05344657]
[1741623824316,0.05837033,120.65,120.63,62.0]
[1741623825127,0.05837033,120.65,120.63,70.2917]
[1741623825428,0.05837033,120.65,120.63,62.0]
[1741623826225,0.05837033,120.65,120.63,70.2917]
[1741623826425,0.05837033,120.65,120.63,62.0]
[1741623826623,0.05837033,120.65,120.62,0.05344657]
[1741623827225,0.05837033,120.65,120.63,8.2916]
[1741623827422,0.05837033,120.65,120.62,0.05344657]
[1741623827823,8.34947033,120.65,120.62,8.34574657]
[1741623828023,0.05837033,120.65,120.62,0.05344657]
[1741623828930,8.2918,120.64,120.62,0.05344657]
[1741623829128,0.05837033,120.65,120.62,0.05344657]
[1741623829724,0.05837033,120.65,120.62,62.05344657]
[1741623830732,8.34917033,120.65,120.62,70.34574657]
[1741623830925,0.05837033,120.65,120.62,0.05344657]
[1741623832927,0.05837033,120.65,120.64,8.2914]
[1741623833135,0.05837033,120.65,120.62,40.85344657]
[1741623833326,0.05837033,120.65,120.64,8.2914]
[1741623833827,0.05837033,120.65,120.63,8.2919]
[1741623834032,0.05837033,120.65,120.64,62.0]
[1741623834535,0.05837033,120.65,120.64,70.2914]
[1741623834929,0.05837033,120.65,120.64,62.0]
[1741623835631,0.05837033,120.65,120.64,70.2914]
[1741623835837,0.00086279,120.65,120.64,70.2914]
[1741623836136,0.00086279,120.65,120.64,62.0]
[1741623836337,0.00086279,120.65,120.63,8.2917]
[1741623836837,0.00086279,120.65,120.62,0.05344657]
[1741623837737,0.00086279,120.65,120.63,35.61576945]
[1741623838032,0.00086279,120.65,120.64,8.2914]
[1741623838727,7.9429,120.71,120.65,35.61576945]
[1741623838931,7.9429,120.71,120.65,76.39576945]
[1741623839227,8.2876,120.7,120.65,76.39576945]
[1741623839536,8.2876,120.7,120.66,62.0]
[1741623839729,7.9429,120.71,120.66,62.0]
[1741623839932,0.05713557,120.69,120.66,62.06273508]
[1741623840135,0.05713557,120.69,120.68,8.2886]
[1741623840535,8.1591,120.76,120.67,35.61576945]
[1741623840835,8.1591,120.76,120.69,35.61576945]
[1741623841035,8.2851,120.74,120.71,8.2862]
[1741623841338,8.1591,120.76,120.67,35.61576945]
[1741623841538,12.3488,120.77,120.73,8.2848]
[1741623841735,51.63511437,120.79,120.73,35.61576945]
[1741623842038,0.05697597,120.76,120.75,35.61576945]
[1741623842234,51.63511437,120.82,120.75,78.93109187]
[1741623842533,43.44541437,120.82,120.78,35.61576945]
[1741623842735,43.44541437,120.82,120.79,40.76]
[1741623843127,43.44541437,120.82,120.79,49.0408]
[1741623843335,43.50760342,120.82,120.8,35.61576945]
[1741623843528,130.33624312,120.84,120.81,35.61576945]
[1741623843734,130.33624312,120.84,120.83,43.89416945]
[1741623843936,130.33624312,120.84,120.83,84.65416945]
[1741623844129,217.22707187,120.85,120.83,76.37576945]
[1741623844331,217.22707187,120.85,120.84,8.2777]
[1741623844641,217.28587315,120.85,120.83,76.4363254]
[1741623845348,164.09137989,120.85,120.83,76.4363254]
[1741623845632,54.08127544,120.85,120.84,35.61576945]
[1741623845833,66.94091662,120.86,120.85,8.277]
[1741623846240,34.44216309,120.86,120.85,10.757]
[1741623846442,21.28256309,120.86,120.85,10.757]
[1741623846737,96.19302333,120.87,120.86,8.2763]
[1741623846942,37.17385471,120.87,120.86,43.89206945]
[1741623847240,0.06060557,120.87,120.86,108.37206945]
[1741623847443,0.06060557,120.87,120.86,117.43697865]
[1741623847641,35.61576945,120.94,120.86,81.8212092]
[1741623847840,8.2756,120.87,120.86,19.8212092]
[1741623848039,35.61576945,120.9,120.81,40.74]
[1741623848236,4.0879,120.89,120.81,40.74]
[1741623848639,4.0879,120.89,120.82,12.15653836]
[1741623848942,8.277,120.85,120.84,0.06183396]
[1741623849544,0.06358946,120.86,120.84,0.06183396]
[1741623849733,0.06358946,120.86,120.85,40.72]
[1741623850343,4.359,120.95,120.85,40.72]
[1741623850539,57.64477025,120.92,120.85,40.72]
[1741623850741,57.64477025,120.88,120.79,4.1527]
[1741623850940,57.64477025,120.86,120.79,40.72]
[1741623851140,8.2797,120.81,120.8,11.99767468]
[1741623851344,57.64477025,120.84,120.76,40.72]
[1741623851546,0.0615943,120.82,120.79,0.05763383]
[1741623852744,0.0615943,120.82,120.8,40.72]
[1741623852942,8.6039,120.87,120.8,98.36477025]
[1741623853145,57.64477025,120.92,120.8,102.32817025]
[1741623853340,8.4114,120.92,120.86,57.64477025]
[1741623853641,8.4114,120.92,120.87,40.72]
[1741623853845,8.4114,120.92,120.85,40.72]
[1741623854145,0.06313998,120.9,120.87,0.05656913]
[1741623855434,8.2749,120.88,120.87,0.05656913]
[1741623855640,57.70791023,120.9,120.82,40.72]
[1741623855833,8.2765,120.86,120.82,40.72]
[1741623856038,8.4114,120.92,120.82,98.36477025]
[1741623856240,8.4114,120.92,120.84,57.64477025]
[1741623856549,57.64477025,120.98,120.86,57.64477025]
[1741623856738,8.3086,120.98,120.9,57.64477025]
[1741623857038,0.06085404,120.93,120.91,40.7]
[1741623857244,8.3086,120.98,120.92,8.2722]
[1741623857439,8.2681,120.99,120.92,57.64477025]
[1741623857638,0.0619225,120.96,120.92,57.64477025]
[1741623857844,0.0619225,120.96,120.94,0.0632842]
[1741623858045,0.0619225,120.96,120.95,40.7]
[1741623858246,8.3316225,120.96,120.95,40.7]
[1741623858439,0.0619225,120.96,120.95,40.7]
[1741623858642,0.0619225,120.96,120.95,102.7]
[1741623860146,0.0619225,120.96,120.95,40.7]
[1741623860850,8.2701,120.95,120.94,0.0632842]
[1741623861651,0.0619225,120.96,120.94,0.0632842]
[1741623862148,0.0619225,120.96,120.95,40.7]
[1741623862649,0.0619225,120.96,120.95,48.9701]
[1741623863139,0.0619225,120.96,120.95,110.9701]
[1741623863539,4.0188,121.02,120.95,102.7]
[1741623863738,4.0188,121.02,120.95,109.99292614]
[1741623863939,8.2681,120.99,120.95,109.99292614]
[1741623864144,8.2681,120.99,120.95,118.26272614]
[1741623864342,4.0188,121.02,120.95,62.0]
[1741623864545,0.05721781,121.0,120.97,0.05701983]
[1741623865043,8.2681,120.98,120.97,0.05701983]
[1741623865436,8.2681,120.98,120.97,1.983e-05]
[1741623865941,10.7481,120.98,120.97,1.983e-05]
[1741623866143,43.16,120.98,120.88,40.68]
[1741623866344,4.254,120.97,120.87,7.9198]
[1741623866543,4.254,120.97,120.85,132.61819345]
[1741623866746,4.05,120.96,120.85,91.93819345]
[1741623867147,4.05,120.96,120.86,7.29720431]
[1741623867347,0.06060792,120.92,120.89,0.06221446]
[1741623867546,0.06060792,120.92,120.85,91.93819345]
[1741623867547,40.74060792,120.92,120.85,91.93819345]
[1741623867945,40.74060792,120.92,120.82,40.68]
[1741623868347,40.68,120.92,120.84,8.277]
[1741623868546,40.68,120.92,120.83,18.98215873]
[1741623868849,0.05441876,120.89,120.87,0.05976241]
[1741623869647,8.2703,120.95,120.91,8.2728]
[1741623869844,4.05,120.96,120.9,40.68]
[1741623870044,8.5349,120.97,120.9,40.68]
[1741623870244,8.2695,120.96,120.92,8.2717]
[1741623870448,8.5349,120.97,120.91,7.30083028]
[1741623870850,0.05294665,120.95,120.93,0.05835574]
[1741623871352,8.32314665,120.95,120.93,0.05835574]
[1741623872351,8.2708,120.94,120.93,0.05835574]
[1741623872853,0.05294665,120.95,120.93,0.05835574]
[1741623874956,272.88,121.08,120.94,40.68]
[1741623875158,12.3829,121.04,120.94,52.1693377]
[1741623875355,12.3829,121.04,120.95,62.0]
[1741623875855,194.0,121.09,120.96,7.1367377]
[1741623876058,0.05830301,121.01,120.98,0.05550091]
[1741623876353,40.66,121.07,120.99,40.66]
[1741623876747,0.05310177,121.01,120.99,47.7967377]
[1741623876951,40.66,121.07,120.99,47.7967377]
[1741623877151,0.05731011,121.04,121.02,0.06157233]
[1741623877657,0.05731011,121.04,121.03,40.66]
[1741623878050,0.05731011,121.04,121.03,47.80683908]
[1741623879048,0.05731011,121.04,121.03,7.14683908]
[1741623879358,2.53731011,121.04,120.98,91.93819345]
[1741623879551,0.05731011,121.04,120.98,91.93819345]
[1741623880552,0.05731011,121.04,121.0,0.05337857]
[1741623880748,0.05731011,121.04,120.98,91.93819345]
[1741623881056,0.05731011,121.04,120.97,52.55809345]
[1741623881057,2.53731011,121.04,120.97,52.55809345]
[1741623881258,0.05731011,121.04,120.97,39.64249345]
[1741623881758,0.05731011,121.04,120.97,38.78449345]
[1741623882058,0.05731011,121.04,120.99,0.06201229]
[1741623884149,40.71731011,121.04,120.99,0.06201229]
[1741623884557,0.05731011,121.04,120.99,0.06201229]
[1741623884759,0.05731011,121.04,120.99,40.72201229]
[1741623888361,0.05731011,121.04,120.99,0.06201229]
[1741623891251,40.64,121.03,120.99,0.06201229]
[1741623892564,0.05731011,121.04,120.99,0.06201229]
[1741623893855,194.0,121.03,120.94,0.90167]
[1741623894064,468.3926194,121.02,120.94,0.90167]
[1741623894263,236.29275597,121.01,120.85,62.0]
[1741623894463,194.0,121.0,120.85,74.2288]
[1741623895064,0.05225391,120.94,120.91,0.05231251]
[1741623895258,40.64,120.94,120.85,74.2288]
[1741623895459,40.69456748,120.94,120.91,0.05448415]
[1741623895655,40.64,120.94,120.85,12.2288]
[1741623895861,40.70372329,120.94,120.85,12.2288]
[1741623896167,40.64,120.94,120.85,12.2288]
[1741623896961,40.64,120.94,120.88,0.05966467]
[1741623897168,0.05264026,120.91,120.88,0.05966467]
[1741623899464,40.66,120.9,120.85,12.2288]
[1741623900059,0.05264026,120.91,120.85,12.2288]
[1741623900763,0.05264026,120.91,120.87,0.0586137]
[1741623903468,32.74911195,120.95,120.87,0.0586137]
[1741623903664,32.74911195,120.95,120.86,8.552]
[1741623904460,43.64504374,120.99,120.86,8.552]
[1741623904660,43.64504374,120.99,120.89,0.06296003]
[1741623904860,43.64504374,120.99,120.9,40.66]
[1741623905073,23.91944374,120.99,120.91,29.0946]
[1741623905275,4.19414374,120.99,120.91,29.0946]
[1741623905569,87.16776221,121.0,120.91,29.0946]
[1741623905763,67.44276221,121.0,120.91,29.0946]
[1741623905963,0.05865547,120.97,120.94,0.06187857]
[1741623906165,0.62240054,121.01,120.95,40.66]
[1741623906468,0.62240054,121.01,120.96,62.0]
[1741623907270,0.06197463,121.0,120.97,0.05906471]
[1741623908668,0.06197463,121.0,120.97,2.53906471]
[1741623909066,0.06197463,121.0,120.97,0.05906471]
[1741623911868,0.06197463,121.0,120.97,40.69906471]
[1741623915364,0.06197463,121.0,120.98,62.0]
[1741623916065,0.06197463,121.0,120.98,64.48]
[1741623916283,0.06197463,121.0,120.98,62.0]
[1741623916472,0.06197463,121.0,120.97,40.69906471]
[1741623916672,0.06197463,121.0,120.97,0.05906471]
[1741623916875,0.06197463,121.0,120.98,40.82]
[1741623919479,0.06197463,121.0,120.99,62.0]
[1741623920280,0.06197463,121.0,120.98,40.82]
[1741623923381,0.06197463,121.0,120.99,62.0]
[1741623924282,0.06197463,121.0,120.97,40.69906471]
[1741623927182,0.06197463,121.0,120.98,62.0]
[1741623927583,0.06197463,121.0,120.98,64.48]
[1741623928286,0.06197463,121.0,120.98,62.0]
[1741623928679,0.06197463,121.0,120.98,64.48]
[1741623929285,0.06197463,121.0,120.98,62.0]
[1741623929481,0.06197463,121.0,120.99,8.2674]
[1741623933289,7.463e-05,121.0,120.99,8.2674]
[1741623934986,7.463e-05,121.0,120.97,0.05906471]
[1741623935395,7.463e-05,121.0,120.99,8.2674]
[1741623936489,7.463e-05,121.0,120.99,70.2674]
[1741623937084,7.463e-05,121.0,120.99,72.7474]
[1741623937292,7.463e-05,121.0,120.99,70.2674]
[1741623937993,7.463e-05,121.0,120.99,72.7474]
[1741623938293,7.463e-05,121.0,120.99,70.2674]
[1741623939495,7.463e-05,121.0,120.99,72.7474]
[1741623940392,7.463e-05,121.0,120.99,99.03653621]
[1741623940594,7.463e-05,121.0,120.99,97.5574]
[1741623940793,7.463e-05,121.0,120.99,72.7474]
[1741623940993,7.463e-05,121.0,120.99,74.2264492]
[1741623941196,7.463e-05,121.0,120.99,72.7474]
[1741623941590,7.463e-05,121.0,120.99,74.22647087]
[1741623943496,4.0339,121.13,121.07,8.2616]
[1741623943688,8.2598,121.11,121.07,40.62]
[1741623943888,4.0339,121.13,121.07,40.62]
[1741623944698,0.05309184,121.11,121.09,0.05931883]
[1741623944992,0.05309184,121.11,121.04,40.6]
[1741623945797,8.2623,121.07,121.04,40.6]
[1741623946099,8.2623,121.07,121.06,0.05637177]
[1741623946302,0.05599562,121.07,121.04,40.6]
[1741623946701,0.05599562,121.07,121.04,102.6]
[1741623947400,0.05599562,121.07,121.06,57.45797063]
[1741623947699,0.05599562,121.07,121.06,65.72057063]
[1741623947899,0.05599562,121.07,121.06,57.45797063]
[1741623948400,4.0339,121.13,121.06,57.45797063]
[1741623948601,4.0339,121.13,121.09,57.45797063]
[1741623949302,4.0339,121.13,121.1,8.2595]
[1741623949605,4.09312071,121.13,121.1,0.06272915]
[1741623949796,4.09312071,121.13,121.11,8.2586]
[1741623950099,4.09312071,121.13,121.1,0.06272915]
[1741623950695,0.05922071,121.13,121.11,57.45797063]
[1741623950891,0.05922071,121.13,121.11,65.71717063]
[1741623951092,0.05922071,121.13,121.11,57.45797063]
[1741623951302,0.05922071,121.13,121.1,0.06272915]
[1741623951501,4.41592071,121.13,121.1,8.32222915]
[1741623952305,12.67412071,121.13,121.1,0.06272915]
[1741623952499,4.41592071,121.13,121.09,57.45797063]
[1741623952802,8.2589,121.12,121.09,57.45797063]
[1741623953098,4.41592071,121.13,121.08,40.6]
[1741623953293,8.2597,121.11,121.08,40.6]
[1741623953696,4.41592071,121.13,121.07,57.45797063]
[1741623953898,4.3567,121.13,121.06,40.6]
[1741623954098,4.3567,121.13,121.05,57.45797063]
[1741623954303,4.3567,121.13,121.06,40.6]
[1741623954997,0.06248452,121.11,121.08,0.05260049]
[1741623955200,0.06248452,121.11,121.06,40.6]
[1741623955904,0.06248452,121.11,121.07,57.45797063]
[1741623956204,0.06248452,121.11,121.1,8.2599]
[1741623956398,0.06248452,121.11,121.1,48.8599]
[1741623956792,4.3554,121.14,121.1,40.6]
[1741623957004,4.3554,121.14,121.13,8.2579]
[1741623957303,4.3554,121.14,121.12,57.45797063]
[1741623957506,4.3554,121.14,121.1,98.05797063]
[1741623957906,4.3554,121.14,121.12,8.2585]
[1741623958208,0.06196583,121.13,121.12,8.2585]
[1741623958804,0.06196583,121.13,121.11,0.05474465]
[1741623959009,4.39186583,121.13,121.11,0.05474465]
[1741623959206,4.39186583,121.13,121.09,57.45797063]
[1741623959705,44.99186583,121.13,121.05,8.2628]
[1741623959905,44.9299,121.13,121.03,57.45797063]
[1741623960103,8.2603,121.1,121.03,57.45797063]
[1741623960408,44.9299,121.13,121.05,0.06149848]
[1741623960409,0.05739869,121.08,121.05,0.06149848]
[1741623960611,8.31869869,121.08,121.06,40.6]
[1741623960811,0.05739869,121.08,121.05,0.05310638]
[1741623961107,4.3299,121.07,121.05,0.05310638]
[1741623962505,4.3299,121.07,121.06,8.2626]
[1741623962812,32.87954383,121.13,121.06,57.45797063]
[1741623963111,4.173,121.12,121.07,40.6]
[1741623963611,4.173,121.12,121.07,34.0294]
[1741623964007,0.05276129,121.11,121.08,0.05523621]
[1741623964414,4.18136129,121.11,121.08,0.05523621]
[1741623964710,4.18136129,121.11,121.1,8.2599]
[1741623965808,37.06724383,121.16,121.09,57.45797063]
[1741623966112,4.1764,121.15,121.08,98.05797063]
[1741623966713,8.2575,121.14,121.08,98.05797063]
[1741623966911,8.2575,121.14,121.09,62.0]
[1741623967213,0.05416127,121.12,121.1,0.05264153]
[1741623967410,0.05416127,121.12,121.08,40.6]
[1741623967913,0.05416127,121.12,121.08,27.4562]
[1741623968214,8.262,121.07,121.04,40.6]
[1741623968416,40.65416127,121.12,121.04,40.6]
[1741623968616,40.6,121.12,121.04,40.65286655]
[1741623968808,0.05264747,121.07,121.04,40.6]
[1741623969115,0.05264747,121.07,121.04,40.65424415]
[1741623969706,0.05264747,121.07,121.06,8.2626]
[1741623971115,0.05264747,121.07,121.05,127.72097063]
[1741623971311,0.05264747,121.07,121.04,40.63424415]
[1741623972611,8.31504747,121.07,121.04,40.63424415]
[1741623972817,8.31504747,121.07,120.98,4.2457]
[1741623972818,0.05264747,121.07,120.99,57.45797063]
[1741623973022,8.265,121.03,120.99,57.45797063]
[1741623973217,40.6,121.07,120.97,57.45797063]
[1741623973417,40.6,121.07,120.97,98.05797063]
[1741623973614,40.6,121.07,120.95,57.45797063]
[1741623973815,251.45797063,121.06,120.95,57.45797063]
[1741623974021,8.2686,120.98,120.94,8.2705]
[1741623974322,40.6,121.03,120.94,62.0]
[1741623974616,4.0516,121.01,120.94,62.0]
[1741623975123,12.3182,121.01,120.97,8.2683]
[1741623975314,12.3182,121.01,120.94,62.0]
[1741623975315,0.06372408,120.99,120.96,0.05488505]
[1741623976819,8.2688,120.97,120.93,8.2711]
[1741623977015,40.66372408,120.99,120.89,77.52803352]
[1741623977216,40.6,120.99,120.91,57.45797063]
[1741623977419,8.2683,120.98,120.95,8.27]
[1741623977621,40.6,120.99,120.91,57.45797063]
[1741623978124,0.054866,120.96,120.94,0.06290303]
[1741623978319,4.0516,121.01,120.95,57.45797063]
[1741623978619,3.9481,121.04,120.99,57.45797063]
[1741623978817,3.9481,121.04,121.01,57.45797063]
[1741623979015,3.9481,121.04,121.03,8.2647]
[1741623979325,11.02750622,121.05,121.03,98.05797063]
[1741623979519,76.80286059,121.04,121.03,98.05797063]
[1741623979711,50.82887848,121.04,121.03,106.32267063]
[1741623979915,50.82887848,121.04,121.03,168.32267063]
[1741623980524,50.82887848,121.04,121.03,119.45797063]
[1741623980722,50.82887848,121.04,121.02,0.0535362]
[1741623980923,55.09197848,121.04,120.97,57.45797063]
[1741623981117,8.2649,121.03,120.97,57.45797063]
[1741623981318,4.2631,121.04,120.97,57.45797063]
[1741623981523,4.2631,121.04,120.99,57.45797063]
[1741623981722,8.2652,121.03,120.99,57.45797063]
[1741623981919,8.2652,121.03,120.97,57.45797063]
[1741623982125,8.2664,121.01,121.0,0.06282406]
[1741623982325,0.05297218,121.02,120.96,40.6]
[1741623982520,40.65297218,121.02,120.93,98.05797063]
[1741623982725,8.2682,120.98,120.93,98.05797063]
[1741623982923,40.6,121.02,120.93,98.05797063]
[1741623983125,8.2675,120.99,120.93,98.05797063]
[1741623983525,0.06179093,120.97,120.95,0.05641727]
[1741623983715,0.06179093,120.97,120.96,62.0]
[1741623985427,0.06179093,120.97,120.96,70.2695]
[1741623986430,0.06179093,120.97,120.8,297.45]
[1741623986629,8.2261,120.98,120.89,57.45797063]
[1741623987029,8.2691,120.97,120.89,57.45797063]
[1741623987231,8.2261,120.98,120.89,57.45797063]
[1741623987633,8.2715,120.93,120.92,0.05991474]
[1741623987831,40.65585631,120.95,120.8,272.64]
[1741623988028,40.6,120.95,120.84,57.45797063]
[1741623988331,57.45797063,120.94,120.82,106.20857063]
[1741623988528,57.45797063,120.92,120.82,48.7506]
[1741623988827,48.7559,120.91,120.82,48.7506]
[1741623989030,0.05420906,120.88,120.82,48.7506]
[1741623989424,0.05420906,120.88,120.83,62.0]
[1741623989826,8.276,120.87,120.83,62.0]
[1741623990229,0.05420906,120.88,120.83,62.0]
[1741623991336,8.32940906,120.88,120.83,62.0]
[1741623991635,40.62,120.87,120.79,44.6575]
[1741623991832,40.62,120.87,120.76,57.45797063]
[1741623992031,0.05608624,120.84,120.76,57.45797063]
[1741623992231,57.45797063,120.86,120.75,4.0365]
[1741623992435,0.05326866,120.81,120.76,8.2829]
[1741623992732,0.05326866,120.81,120.75,44.6565]
[1741623992936,0.05326866,120.81,120.75,40.62]
[1741623993235,8.2809,120.8,120.75,40.62]
[1741623993438,0.05326866,120.81,120.75,40.62]
[1741623993625,8.33346866,120.81,120.75,8.2833]
[1741623993825,0.05326866,120.81,120.74,4.3342]
[1741623994024,0.05326866,120.81,120.74,57.45797063]
[1741623994435,0.05326866,120.81,120.76,57.45797063]
[1741623994626,4.3124,120.84,120.78,57.45797063]
[1741623994833,0.05730095,120.8,120.78,98.07797063]
[1741623995226,44.7855,120.88,120.82,8.2789]
[1741623995425,44.7855,120.88,120.81,57.45797063]
[1741623995631,44.7855,120.88,120.79,61.78257063]
[1741623995835,44.7855,120.88,120.79,4.3246]
[1741623996236,44.7855,120.88,120.79,61.78257063]
[1741623996436,0.06094967,120.85,120.82,0.05443866]
[1741623998435,40.70094967,120.85,120.77,44.9742]
[1741623998738,57.45797063,120.84,120.74,40.64]
[1741623998940,8.2805,120.8,120.75,8.2835]
[1741623999135,8.2805,120.8,120.74,40.64]
[1741623999329,40.64,120.85,120.74,40.64]
[1741623999535,8.2792,120.82,120.77,8.2823]
[1741623999833,0.06079249,120.81,120.77,8.2823]
[1741624000235,0.06079249,120.81,120.75,57.45797063]
[1741624000435,0.06079249,120.81,120.75,4.315]
[1741624001036,8.2808,120.8,120.75,4.315]
[1741624001336,0.06079249,120.81,120.76,62.0]
[1741624001942,8.2804,120.8,120.76,70.2829]
[1741624002240,0.06079249,120.81,120.76,62.0]
[1741624002445,8.34109249,120.81,120.77,8.282]
[1741624002739,8.34109249,120.81,120.76,62.0]
[1741624002740,0.06079249,120.81,120.76,62.0]
[1741624002942,0.06079249,120.81,120.78,8.2812]
[1741624003438,0.06079249,120.81,120.79,8.281]
[1741624003639,0.06079249,120.81,120.76,62.0]
[1741624004540,8.2808,120.8,120.76,62.0]
[1741624004743,0.06079249,120.81,120.76,62.0]
[1741624005138,0.06079249,120.81,120.79,8.2805]
[1741624005339,0.06079249,120.81,120.76,62.0]
[1741624006944,0.06079249,120.81,120.8,8.2804]
[1741624007940,0.06079249,120.81,120.76,62.0]
[1741624008744,0.06079249,120.81,120.8,8.2804]
[1741624009945,8.2773,120.85,120.79,40.66]
[1741624010441,8.278,120.84,120.79,40.66]
[1741624010745,44.653,120.87,120.79,29.14450312]
[1741624010943,0.05641723,120.84,120.79,29.14450312]
[1741624011143,0.05641723,120.84,120.82,0.06241729]
[1741624011543,8.33441723,120.84,120.82,0.06241729]
[1741624012146,8.2784,120.83,120.82,0.06241729]
[1741624012348,0.05641723,120.84,120.76,102.66]
[1741624012642,8.2824,120.78,120.73,44.8744]
[1741624012841,40.66,120.81,120.73,44.8744]
[1741624013051,40.66,120.81,120.73,80.39124416]